bitfinex/quotes_SOLUSD_20230904
["timestamp","ask_amount","ask_price","bid_price","bid_amount"]
[1693844405819,34.059,19.378,19.371,1.67340615]
[1693844406240,34.059,19.378,19.37,1.67340615]
[1693844407239,34.059,19.378,19.368,6.84285104]
[1693844407424,34.059,19.378,19.369,55.0]
[1693844407740,34.059,19.378,19.369,2.01085104]
[1693844411431,55.0,19.377,19.369,2.01085104]
[1693844411631,193.55,19.375,19.365,2.517545]
[1693844413440,193.55,19.375,19.364,2.517545]
[1693844413631,193.55,19.375,19.364,7.350545]
[1693844414341,193.55,19.375,19.364,2.517545]
[1693844418530,193.55,19.375,19.363,2.517545]
[1693844419346,193.55,19.375,19.363,7.350545]
[1693844419641,193.55,19.375,19.363,2.517545]
[1693844419841,97.2197,19.376,19.355,90.64630539]
[1693844419842,90.871,19.368,19.356,2.517545]
[1693844420050,90.871,19.368,19.361,2.517545]
[1693844421941,90.871,19.368,19.361,7.351545]
[1693844422342,90.871,19.368,19.361,2.517545]
[1693844425157,90.871,19.368,19.361,7.351545]
[1693844425448,90.871,19.368,19.357,2.42307168]
[1693844426439,90.871,19.368,19.359,4.834]
[1693844426638,90.871,19.368,19.36,2.42307168]
[1693844427442,90.871,19.368,19.358,2.42307168]
[1693844428350,90.871,19.368,19.357,57.517545]
[1693844429052,90.871,19.368,19.357,62.352545]
[1693844429247,90.871,19.368,19.356,2.517545]
[1693844429437,34.084,19.364,19.356,7.352545]
[1693844433852,90.89,19.364,19.356,2.517545]
[1693844434446,90.89,19.364,19.355,2.517545]
[1693844434651,90.89,19.364,19.356,4.835]
[1693844434856,90.89,19.364,19.357,2.517545]
[1693844435157,90.89,19.364,19.357,4.835]
[1693844435756,90.89,19.364,19.355,2.517545]
[1693844435959,90.89,19.364,19.355,7.352545]
[1693844440358,34.084,19.364,19.355,22.975545]
[1693844444060,34.084,19.364,19.355,7.352545]
[1693844444253,90.89,19.364,19.355,7.352545]
[1693844450772,90.89,19.364,19.355,2.517545]
[1693844450975,75.0,19.363,19.348,7.354545]
[1693844451275,90.915,19.359,19.348,7.354545]
[1693844451477,90.915,19.359,19.348,22.983545]
[1693844451478,20.0,19.358,19.348,22.983545]
[1693844451673,8.059,19.357,19.348,22.983545]
[1693844452567,8.059,19.357,19.35,7.354545]
[1693844456473,8.059,19.357,19.35,2.517545]
[1693844457378,34.096,19.357,19.35,2.517545]
[1693844457769,34.096,19.357,19.349,2.517545]
[1693844457973,34.096,19.357,19.347,2.517545]
[1693844458284,34.096,19.357,19.347,57.517545]
[1693844459586,34.096,19.357,19.347,2.517545]
[1693844459916,34.096,19.357,19.345,2.517545]
[1693844460088,34.096,19.357,19.344,57.517545]
[1693844460267,90.8408,19.356,19.344,57.517545]
[1693844460468,34.104,19.353,19.344,62.355545]
[1693844461165,34.104,19.353,19.344,2.517545]
[1693844461474,34.104,19.353,19.339,2.517545]
[1693844461777,34.104,19.353,19.336,2.517545]
[1693844461975,34.104,19.353,19.34,2.517545]
[1693844462182,34.104,19.353,19.336,2.517545]
[1693844462386,34.104,19.353,19.34,4.839]
[1693844462572,34.104,19.353,19.341,2.517545]
[1693844463184,34.104,19.353,19.343,2.517545]
[1693844463367,34.104,19.353,19.344,4.838]
[1693844463563,34.104,19.353,19.345,2.517545]
[1693844464370,34.104,19.353,19.345,7.355545]
[1693844466286,34.104,19.353,19.344,7.355545]
[1693844468081,34.104,19.353,19.344,2.517545]
[1693844468385,34.104,19.353,19.343,7.355545]
[1693844468771,34.104,19.353,19.343,2.517545]
[1693844468982,34.104,19.353,19.343,7.355545]
[1693844470680,90.8408,19.356,19.347,20.466]
[1693844470879,98.8998,19.356,19.348,2.517545]
[1693844471080,98.8998,19.356,19.35,4.837]
[1693844471588,124.9378,19.356,19.347,15.629]
[1693844471777,90.926,19.356,19.348,7.03392542]
[1693844472102,34.097,19.356,19.348,22.66292542]
[1693844472279,8.059,19.356,19.348,22.66292542]
[1693844472588,8.059,19.356,19.35,7.03392542]
[1693844473173,8.059,19.357,19.35,56.76892542]
[1693844473376,8.059,19.357,19.349,55.0]
[1693844473377,34.07,19.36,19.353,20.46]
[1693844473582,26.031,19.362,19.354,2.19692542]
[1693844473791,8.057,19.36,19.356,4.835]
[1693844473994,8.057,19.36,19.354,2.19692542]
[1693844474372,34.09,19.36,19.352,2.19692542]
[1693844474692,34.09,19.36,19.354,4.836]
[1693844475093,34.09,19.36,19.355,0.73562693]
[1693844476089,34.09,19.36,19.349,34.108]
[1693844476396,68.16,19.36,19.352,4.836]
[1693844476592,68.16,19.36,19.353,2.517545]
[1693844476913,34.097,19.356,19.348,7.354545]
[1693844477201,34.097,19.356,19.348,2.517545]
[1693844477381,34.097,19.356,19.346,4.838]
[1693844477576,34.097,19.356,19.347,2.517545]
[1693844477998,34.097,19.356,19.347,7.354545]
[1693844479892,34.097,19.356,19.347,2.517545]
[1693844480285,34.097,19.356,19.347,4.837]
[1693844480493,34.097,19.356,19.348,2.517545]
[1693844480794,34.097,19.356,19.348,4.837]
[1693844483286,34.097,19.356,19.346,5.41874635]
[1693844483596,34.097,19.356,19.346,0.58074635]
[1693844483786,34.097,19.356,19.341,2.517545]
[1693844483986,34.097,19.356,19.341,57.517545]
[1693844484697,34.097,19.356,19.342,20.473]
[1693844485001,34.097,19.356,19.343,2.517545]
[1693844485189,34.097,19.356,19.345,4.838]
[1693844485390,34.097,19.356,19.346,2.517545]
[1693844487099,34.097,19.356,19.345,2.517545]
[1693844487276,34.097,19.356,19.344,4.838]
[1693844487277,8.062,19.349,19.344,2.517545]
[1693844487999,8.062,19.349,19.344,7.355545]
[1693844488695,8.062,19.35,19.344,7.355545]
[1693844490195,68.178,19.35,19.344,7.355545]
[1693844491193,68.178,19.35,19.344,2.517545]
[1693844491393,68.178,19.35,19.342,2.517545]
[1693844491579,42.132,19.35,19.342,57.517545]
[1693844491977,42.132,19.35,19.342,2.517545]
[1693844492483,42.132,19.35,19.344,4.838]
[1693844493290,68.178,19.35,19.34,34.125]
[1693844493490,34.108,19.35,19.341,2.18953353]
[1693844494191,8.062,19.35,19.343,4.838]
[1693844494499,8.062,19.35,19.344,2.18953353]
[1693844494696,8.062,19.35,19.344,7.02753353]
[1693844495095,34.108,19.35,19.344,2.18953353]
[1693844495404,34.108,19.35,19.343,2.18953353]
[1693844495589,68.178,19.35,19.343,2.18953353]
[1693844495783,68.178,19.35,19.338,15.637]
[1693844495784,125.025,19.35,19.338,15.637]
[1693844495985,8.063,19.346,19.34,2.09051973]
[1693844496290,90.973,19.346,19.34,2.09051973]
[1693844496600,90.973,19.346,19.338,2.41993454]
[1693844497499,90.973,19.346,19.337,2.45499575]
[1693844497901,34.114,19.346,19.337,7.29499575]
[1693844498203,34.114,19.346,19.337,22.93299575]
[1693844498891,34.114,19.346,19.338,55.0]
[1693844499091,34.114,19.346,19.339,7.29399575]
[1693844499288,34.114,19.346,19.339,2.45499575]
[1693844500192,34.114,19.346,19.337,2.45499575]
[1693844500503,34.114,19.346,19.337,57.45499575]
[1693844501301,34.114,19.346,19.337,62.29499575]
[1693844501597,34.114,19.346,19.337,77.93299575]
[1693844501793,34.114,19.346,19.337,62.29499575]
[1693844504701,34.114,19.346,19.337,57.45499575]
[1693844505396,34.114,19.346,19.337,62.29499575]
[1693844506811,34.114,19.346,19.337,2.45499575]
[1693844507714,34.114,19.346,19.336,2.517545]
[1693844508017,34.114,19.346,19.336,7.357545]
[1693844508203,55.0,19.345,19.336,2.517545]
[1693844508400,55.0,19.345,19.321,61.796]
[1693844508401,193.874,19.343,19.329,2.517545]
[1693844508602,34.07,19.34,19.329,7.359545]
[1693844508903,56.856,19.347,19.33,34.07]
[1693844509109,8.064,19.345,19.335,54.613]
[1693844509308,26.049,19.348,19.336,2.517545]
[1693844509509,8.063,19.346,19.339,4.839]
[1693844509703,34.114,19.346,19.33,59.8134149]
[1693844509910,90.973,19.346,19.331,57.08816653]
[1693844510911,90.973,19.346,19.335,4.84]
[1693844511099,90.973,19.346,19.336,2.08816653]
[1693844511410,90.973,19.346,19.336,57.08816653]
[1693844511606,90.973,19.346,19.336,55.0]
[1693844511914,90.973,19.346,19.337,0.55096593]
[1693844512214,90.973,19.346,19.337,4.84]
[1693844515218,90.973,19.346,19.336,4.84]
[1693844517612,90.973,19.346,19.336,20.479]
[1693844517924,34.114,19.346,19.337,55.0]
[1693844518104,34.114,19.346,19.338,4.84]
[1693844518821,34.114,19.346,19.337,59.84]
[1693844519121,34.114,19.346,19.337,55.0]
[1693844519313,34.114,19.346,19.336,4.84]
[1693844519507,34.114,19.346,19.337,0.91474091]
[1693844519904,34.114,19.346,19.337,4.84]
[1693844520216,34.114,19.346,19.334,0.64464658]
[1693844520419,34.07,19.34,19.33,36.660545]
[1693844520620,8.066,19.34,19.334,4.841]
[1693844521010,8.066,19.34,19.335,0.57126963]
[1693844521216,26.056,19.343,19.335,21.05126963]
[1693844521521,8.065,19.341,19.335,5.41126963]
[1693844521725,8.065,19.341,19.335,4.84]
[1693844522315,8.065,19.341,19.335,20.48]
[1693844522818,8.065,19.343,19.338,4.84]
[1693844524524,41.9607032,19.353,19.338,20.477]
[1693844524726,20.0,19.349,19.339,0.79858664]
[1693844524919,8.061,19.352,19.34,88.67]
[1693844525119,8.061,19.352,19.341,57.517545]
[1693844525316,8.061,19.352,19.344,54.588]
[1693844525623,34.104,19.352,19.345,57.517545]
[1693844525807,8.061,19.352,19.346,20.469]
[1693844526009,8.061,19.352,19.346,4.838]
[1693844526213,34.104,19.352,19.346,4.838]
[1693844526423,34.104,19.352,19.345,4.838]
[1693844526740,34.104,19.352,19.346,55.0]
[1693844527030,34.104,19.352,19.347,0.56370384]
[1693844527210,8.061,19.352,19.347,4.837]
[1693844527411,8.061,19.352,19.347,20.467]
[1693844527619,8.06,19.353,19.347,20.467]
[1693844528408,8.06,19.353,19.347,4.837]
[1693844528610,26.042,19.354,19.347,4.837]
[1693844528611,8.06,19.354,19.348,55.0]
[1693844528919,8.058,19.358,19.349,54.575]
[1693844529337,8.058,19.358,19.352,20.461]
[1693844529515,8.058,19.359,19.352,20.461]
[1693844529716,20.0,19.358,19.352,20.461]
[1693844530018,28.058,19.358,19.352,20.461]
[1693844530826,28.058,19.358,19.352,4.836]
[1693844531224,54.093,19.358,19.348,55.0]
[1693844531621,54.093,19.358,19.347,55.0]
[1693844531937,54.093,19.358,19.35,4.837]
[1693844534021,54.093,19.358,19.349,4.837]
[1693844534222,54.093,19.358,19.35,55.0]
[1693844534423,54.093,19.358,19.349,4.837]
[1693844534718,54.093,19.358,19.348,4.837]
[1693844534918,54.093,19.358,19.349,55.0]
[1693844535520,54.093,19.358,19.348,55.0]
[1693844536431,54.093,19.358,19.348,59.837]
[1693844536827,34.093,19.358,19.348,55.0]
[1693844537434,34.093,19.358,19.348,75.466]
[1693844537743,8.058,19.358,19.348,109.578]
[1693844538528,34.093,19.358,19.348,109.578]
[1693844538729,34.093,19.358,19.349,0.62669351]
[1693844539028,34.093,19.358,19.351,4.836]
[1693844539427,34.093,19.358,19.352,55.0]
[1693844541125,34.093,19.358,19.352,59.836]
[1693844541619,34.093,19.358,19.352,55.0]
[1693844542426,56.798,19.367,19.352,82.161]
[1693844542736,8.055,19.366,19.361,4.834]
[1693844543229,8.055,19.366,19.359,15.62]
[1693844543527,8.055,19.365,19.361,4.834]
[1693844543729,56.789,19.37,19.361,4.834]
[1693844543730,8.055,19.366,19.361,4.834]
[1693844544130,8.055,19.367,19.361,4.834]
[1693844544453,8.055,19.367,19.362,55.0]
[1693844544627,15.51911156,19.374,19.362,55.0]
[1693844544834,91.9637,19.377,19.363,4.833]
[1693844545130,34.064,19.375,19.364,55.0]
[1693844545332,34.064,19.375,19.363,20.45]
[1693844545333,34.064,19.375,19.354,81.70443865]
[1693844545522,194.6647,19.377,19.354,81.70443865]
[1693844545523,91.9637,19.377,19.365,54.53]
[1693844545725,100.0137,19.377,19.366,56.78707947]
[1693844545927,8.05,19.377,19.369,20.444]
[1693844546333,8.05,19.379,19.37,55.0]
[1693844546532,8.05,19.379,19.372,4.831]
[1693844546729,250.0,19.392,19.372,15.61]
[1693844547031,90.802,19.383,19.373,55.0]
[1693844547440,90.802,19.383,19.373,59.831]
[1693844547824,20.0,19.382,19.373,59.831]
[1693844548042,34.056,19.38,19.373,55.0]
[1693844548342,20.0,19.379,19.369,15.611]
[1693844548535,20.0,19.379,19.371,4.831]
[1693844548536,8.05,19.377,19.371,4.831]
[1693844548722,8.05,19.377,19.371,20.441]
[1693844549121,8.05,19.377,19.371,4.831]
[1693844551140,34.06,19.377,19.365,34.08]
[1693844551326,136.759,19.377,19.366,1.00725253]
[1693844551524,136.759,19.377,19.363,15.616]
[1693844551525,136.759,19.377,19.364,6.1896692]
[1693844551734,136.759,19.377,19.364,4.833]
[1693844551948,92.4338,19.376,19.363,4.833]
[1693844552238,90.85,19.373,19.363,4.833]
[1693844552425,90.85,19.373,19.362,4.834]
[1693844552739,90.85,19.373,19.362,20.452]
[1693844554138,90.85,19.373,19.363,0.73146523]
[1693844554432,90.85,19.373,19.364,4.833]
[1693844555324,90.85,19.373,19.364,20.449]
[1693844555831,90.85,19.373,19.358,61.678]
[1693844555832,20.0,19.372,19.358,34.093]
[1693844556035,193.621,19.368,19.356,4.835]
[1693844556423,193.621,19.368,19.357,2.517545]
[1693844556624,193.621,19.368,19.355,4.835]
[1693844556927,193.621,19.368,19.356,0.67009795]
[1693844557133,193.621,19.368,19.356,5.50509795]
[1693844557439,193.621,19.368,19.356,4.835]
[1693844558226,90.891,19.364,19.356,4.835]
[1693844562344,90.891,19.364,19.356,20.458]
[1693844563532,90.891,19.364,19.356,4.835]
[1693844570247,8.056,19.364,19.356,20.458]
[1693844570446,90.4627,19.367,19.357,55.0]
[1693844570748,8.054,19.369,19.36,54.543]
[1693844570951,8.054,19.369,19.361,56.21869618]
[1693844571145,34.074,19.369,19.363,4.833]
[1693844571338,8.054,19.369,19.363,4.833]
[1693844572647,34.074,19.369,19.363,4.833]
[1693844573132,34.074,19.369,19.36,15.619]
[1693844573448,34.074,19.369,19.358,25.7434149]
[1693844573449,34.074,19.369,19.358,4.835]
[1693844573948,34.074,19.369,19.357,4.835]
[1693844574247,34.074,19.369,19.354,4.836]
[1693844574549,34.074,19.369,19.355,0.92860928]
[1693844574849,193.661,19.364,19.352,4.836]
[1693844575054,193.661,19.364,19.353,1.80806393]
[1693844575251,193.661,19.364,19.354,4.836]
[1693844575456,34.089,19.361,19.354,4.836]
[1693844577450,34.089,19.361,19.352,15.626]
[1693844577451,34.089,19.361,19.352,4.836]
[1693844577656,34.089,19.361,19.353,55.0]
[1693844577951,34.089,19.361,19.353,59.836]
[1693844579839,34.089,19.361,19.353,4.836]
[1693844580941,34.089,19.361,19.352,15.626]
[1693844580942,20.0,19.36,19.345,34.117]
[1693844581145,90.929,19.356,19.348,4.837]
[1693844581349,90.929,19.356,19.349,1.80806393]
[1693844581750,90.929,19.356,19.348,4.837]
[1693844582145,90.929,19.356,19.349,0.49441829]
[1693844582355,90.929,19.356,19.349,5.33141829]
[1693844582656,90.929,19.356,19.349,4.837]
[1693844583760,90.929,19.356,19.345,49.33250386]
[1693844584059,90.929,19.356,19.346,56.80806393]
[1693844584855,90.929,19.356,19.346,1.80806393]
[1693844585554,90.929,19.356,19.346,22.27706393]
[1693844588560,34.098,19.356,19.347,55.0]
[1693844588766,8.059,19.357,19.349,54.575]
[1693844589057,34.097,19.356,19.35,59.837]
[1693844589444,8.059,19.356,19.35,59.837]
[1693844590668,34.097,19.356,19.35,59.837]
[1693844591246,8.059,19.356,19.35,59.837]
[1693844591456,20.0,19.36,19.35,75.464]
[1693844591457,8.059,19.357,19.35,75.464]
[1693844591760,90.3747,19.363,19.351,0.88935786]
[1693844591962,8.057,19.362,19.354,54.56]
[1693844592263,8.057,19.362,19.355,0.88935786]
[1693844592453,8.057,19.362,19.357,4.835]
[1693844593863,90.3747,19.363,19.357,20.457]
[1693844594063,8.055,19.366,19.357,20.457]
[1693844594263,56.788,19.371,19.358,55.0]
[1693844594466,99.8529,19.372,19.361,20.452]
[1693844594759,8.053,19.371,19.364,20.449]
[1693844595352,20.0,19.37,19.364,4.833]
[1693844595553,8.054,19.369,19.364,4.833]
[1693844596865,34.074,19.369,19.363,4.833]
[1693844597176,34.074,19.369,19.361,15.618]
[1693844597359,34.074,19.369,19.362,55.0]
[1693844597853,26.015,19.373,19.363,54.535]
[1693844598069,56.765,19.379,19.364,55.0]
[1693844598265,8.051,19.376,19.368,20.445]
[1693844598454,8.051,19.376,19.369,55.0]
[1693844598660,34.062,19.376,19.37,4.832]
[1693844599461,8.051,19.376,19.37,4.832]
[1693844599767,8.05,19.377,19.37,20.443]
[1693844599973,8.05,19.377,19.372,4.831]
[1693844600168,34.06,19.377,19.372,4.831]
[1693844600359,34.06,19.377,19.371,59.831]
[1693844600553,34.06,19.377,19.371,55.0]
[1693844601357,136.759,19.377,19.363,34.085]
[1693844601564,136.759,19.377,19.368,4.832]
[1693844601967,136.759,19.377,19.367,4.832]
[1693844602167,136.759,19.377,19.368,55.0]
[1693844602367,136.759,19.377,19.368,59.832]
[1693844602573,136.759,19.377,19.368,55.0]
[1693844602758,136.759,19.377,19.367,59.832]
[1693844613061,136.759,19.377,19.367,75.446]
[1693844613062,34.06,19.377,19.367,75.446]
[1693844613275,8.05,19.378,19.367,137.097]
[1693844613473,56.756,19.381,19.367,137.097]
[1693844613474,8.05,19.379,19.367,137.097]
[1693844614675,34.057,19.379,19.367,137.097]
[1693844614874,90.819,19.379,19.367,75.446]
[1693844615188,90.819,19.379,19.367,59.832]
[1693844619280,90.819,19.379,19.367,75.446]
[1693844619586,90.819,19.379,19.367,109.524]
[1693844620185,8.05,19.379,19.367,109.524]
[1693844620388,8.049,19.38,19.367,135.2674149]
[1693844620686,20.0,19.379,19.371,54.511]
[1693844620876,20.0,19.379,19.374,4.831]
[1693844621472,26.001,19.384,19.376,4.83]
[1693844621673,123.6968,19.386,19.376,4.83]
[1693844621873,8.047,19.385,19.379,4.829]
[1693844622270,8.047,19.385,19.377,59.83]
[1693844623388,34.046,19.385,19.377,59.83]
[1693844624188,8.047,19.385,19.377,59.83]
[1693844624391,8.046,19.388,19.377,75.436]
[1693844626387,8.046,19.389,19.377,75.436]
[1693844626775,8.045,19.389,19.377,75.436]
[1693844626983,106.42716375,19.394,19.38,34.34]
[1693844627178,56.715,19.395,19.38,34.34]
[1693844627179,8.044,19.393,19.384,20.428]
[1693844627487,8.042,19.397,19.388,20.423]
[1693844627681,90.734,19.397,19.381,61.605]
[1693844627879,90.734,19.397,19.385,4.828]
[1693844628081,90.734,19.397,19.386,55.0]
[1693844628493,90.734,19.397,19.386,59.828]
[1693844628685,90.734,19.397,19.386,55.0]
[1693844629482,90.734,19.397,19.386,4.828]
[1693844629682,90.734,19.397,19.387,55.0]
[1693844630485,90.734,19.397,19.386,55.0]
[1693844631091,90.734,19.397,19.386,59.828]
[1693844631390,8.042,19.397,19.386,75.426]
[1693844632191,8.04,19.401,19.386,75.426]
[1693844632388,520.97369368,19.408,19.393,20.418]
[1693844632389,25.973,19.405,19.393,20.418]
[1693844632595,34.015,19.403,19.393,20.418]
[1693844632774,34.015,19.403,19.394,59.826]
[1693844634178,34.015,19.403,19.394,75.418]
[1693844634589,8.04,19.403,19.394,75.418]
[1693844635387,107.0818,19.406,19.394,75.418]
[1693844636077,8.038,19.406,19.394,75.418]
[1693844636292,34.009,19.406,19.394,75.418]
[1693844636483,90.692,19.406,19.394,75.418]
[1693844640690,8.038,19.406,19.394,75.418]
[1693844640999,90.692,19.406,19.394,75.418]
[1693844641899,8.038,19.406,19.394,136.983]
[1693844642100,8.038,19.408,19.394,136.983]
[1693844642592,34.006,19.408,19.394,136.983]
[1693844647183,8.037,19.409,19.394,136.983]
[1693844647500,8.037,19.41,19.395,25.7434149]
[1693844647699,20.0,19.409,19.399,54.433]
[1693844647998,8.036,19.412,19.403,20.407]
[1693844648188,56.659,19.415,19.403,20.407]
[1693844648189,82.619,19.415,19.403,20.407]
[1693844648395,82.619,19.415,19.402,34.016]
[1693844648396,8.036,19.412,19.406,4.823]
[1693844648588,8.036,19.412,19.407,59.822]
[1693844648996,8.036,19.412,19.407,55.0]
[1693844649196,33.999,19.412,19.407,55.0]
[1693844649401,8.036,19.412,19.407,55.0]
[1693844650207,8.036,19.412,19.406,4.823]
[1693844650504,8.036,19.412,19.407,55.0]
[1693844650705,8.036,19.412,19.406,59.823]
[1693844651594,33.999,19.412,19.406,59.823]
[1693844652197,8.036,19.412,19.406,59.823]
[1693844654316,8.036,19.412,19.406,75.405]
[1693844657305,8.035,19.413,19.406,75.405]
[1693844662013,98.0472,19.416,19.406,75.405]
[1693844662219,106.0812,19.416,19.406,75.405]
[1693844662423,8.034,19.416,19.406,75.405]
[1693844663713,33.991,19.416,19.406,75.405]
[1693844664707,8.034,19.416,19.406,75.405]
[1693844669821,15.2179289,19.423,19.406,75.405]
[1693844670121,33.983,19.421,19.406,75.405]
[1693844670325,8.033,19.419,19.406,75.405]
[1693844670634,33.986,19.419,19.406,75.405]
[1693844670807,33.986,19.419,19.406,132.042]
[1693844671222,8.033,19.419,19.406,75.405]
[1693844671413,25.951,19.422,19.407,20.0]
[1693844671622,8.032,19.422,19.411,54.399]
[1693844671921,8.032,19.422,19.412,55.0]
[1693844672131,8.032,19.422,19.415,4.821]
[1693844672315,8.032,19.422,19.414,15.575]
[1693844672316,33.981,19.422,19.416,55.0]
[1693844672707,33.981,19.422,19.416,59.82]
[1693844674417,8.032,19.422,19.416,59.82]
[1693844675119,56.625,19.426,19.416,75.394]
[1693844675427,8.031,19.423,19.416,75.394]
[1693844675728,8.031,19.423,19.416,59.82]
[1693844675932,8.031,19.423,19.416,75.394]
[1693844677229,33.979,19.423,19.416,75.394]
[1693844677916,8.031,19.423,19.416,75.394]
[1693844679226,15.67971163,19.428,19.416,75.394]
[1693844679412,0.92241606,19.426,19.416,109.386]
[1693844679811,34.89641606,19.426,19.416,109.386]
[1693844680333,33.974,19.426,19.416,109.386]
[1693844680531,33.974,19.426,19.416,54.386]
[1693844681231,33.974,19.426,19.416,4.82]
[1693844681935,33.974,19.426,19.417,55.0]
[1693844682229,33.974,19.426,19.417,59.82]
[1693844683134,33.974,19.426,19.417,75.393]
[1693844685836,33.974,19.426,19.417,4.82]
[1693844687938,33.974,19.426,19.417,20.393]
[1693844689027,33.974,19.426,19.417,4.82]
[1693844692045,33.974,19.426,19.416,4.82]
[1693844693645,33.974,19.426,19.416,20.394]
[1693844694335,33.974,19.426,19.419,4.819]
[1693844694525,33.974,19.426,19.42,55.0]
[1693844695030,33.974,19.426,19.418,4.82]
[1693844695232,33.974,19.426,19.419,59.82]
[1693844697141,33.974,19.426,19.419,55.0]
[1693844697343,33.974,19.426,19.419,59.819]
[1693844697946,8.03,19.426,19.419,75.391]
[1693844698144,33.974,19.426,19.419,59.819]
[1693844700340,8.03,19.426,19.419,75.391]
[1693844700745,122.3808,19.429,19.419,75.391]
[1693844701046,8.95141606,19.428,19.419,75.391]
[1693844701635,8.029,19.428,19.419,75.391]
[1693844701946,8.03,19.426,19.419,75.391]
[1693844702146,0.68726861,19.427,19.42,34.11]
[1693844702349,25.937,19.432,19.422,54.369]
[1693844702350,8.028,19.432,19.422,54.369]
[1693844702829,8.028,19.432,19.425,20.385]
[1693844703350,8.027,19.433,19.428,4.817]
[1693844703654,33.962,19.433,19.426,59.818]
[1693844705234,8.027,19.433,19.426,75.384]
[1693844706233,82.53,19.436,19.426,75.384]
[1693844706234,8.027,19.434,19.426,75.384]
[1693844707031,33.96,19.434,19.426,55.0]
[1693844707236,33.96,19.434,19.42,95.591]
[1693844707237,90.561,19.434,19.424,4.818]
[1693844707447,90.561,19.434,19.425,4.818]
[1693844707752,90.561,19.434,19.426,4.818]
[1693844708542,8.027,19.434,19.426,20.384]
[1693844708746,8.025,19.438,19.426,54.359]
[1693844708950,0.75284793,19.437,19.427,55.0]
[1693844709148,8.023,19.444,19.43,88.458]
[1693844709445,8.92533973,19.443,19.434,54.335]
[1693844709658,8.023,19.443,19.434,54.335]
[1693844709832,8.023,19.443,19.437,4.815]
[1693844710752,33.944,19.443,19.436,4.815]
[1693844711338,0.70179097,19.442,19.436,4.815]
[1693844711538,8.024,19.44,19.435,4.816]
[1693844711841,8.024,19.44,19.436,55.0]
[1693844712049,8.024,19.44,19.436,59.815]